bitfinex-derivatives/quotes_ETHF0:USTF0_20260125
["timestamp","ask_amount","ask_price","bid_price","bid_amount"]
[1769301760752,1.09769919,2958.3,2957.0,0.00507117]
[1769301760946,3.91562955,2958.2,2957.0,0.00507117]
[1769301761145,3.91562955,2958.1,2957.0,0.00507117]
[1769301761355,3.91562955,2958.0,2957.0,0.00507117]
[1769301761553,3.91562955,2957.9,2957.0,0.00507117]
[1769301761756,3.91562955,2957.8,2957.0,0.00507117]
[1769301762051,1.09769919,2958.3,2957.0,0.00507117]
[1769301762358,3.91564227,2958.2,2957.0,0.00507117]
[1769301762553,3.91564227,2958.1,2957.0,0.00507117]
[1769301762754,3.91564227,2958.0,2957.0,0.00507117]
[1769301762956,3.91564227,2957.9,2957.0,0.00507117]
[1769301763156,3.91564227,2957.8,2957.0,0.00507117]
[1769301763356,1.09769919,2958.3,2957.0,0.00507117]
[1769301763557,3.91574959,2958.2,2957.0,0.00507117]
[1769301763746,3.91574959,2958.1,2957.0,0.00507117]
[1769301763950,3.91574959,2958.0,2957.0,0.00507117]
[1769301764152,3.91574959,2957.9,2957.0,0.00507117]
[1769301764353,3.91574959,2957.8,2957.0,0.00507117]
[1769301764552,1.09769919,2958.3,2957.0,0.00507117]
[1769301764848,3.91582647,2958.2,2957.0,0.00507117]
[1769301765052,3.91582647,2958.1,2957.0,0.00507117]
[1769301765259,3.91582647,2958.0,2957.0,0.00507117]
[1769301765559,3.91582647,2957.9,2957.0,0.00507117]
[1769301765758,3.91582647,2957.8,2957.0,0.00507117]
[1769301765959,1.09769919,2958.3,2957.0,0.00507117]
[1769301766160,3.91579716,2958.2,2957.0,0.00507117]
[1769301766361,3.91579716,2958.1,2957.0,0.00507117]
[1769301766561,3.91579716,2958.0,2957.0,0.00507117]
[1769301766762,3.91579716,2957.9,2957.0,0.00507117]
[1769301766964,3.91579716,2957.8,2957.0,0.00507117]
[1769301767165,1.09769919,2958.3,2957.0,0.00507117]
[1769301767351,3.91573913,2958.2,2957.0,0.00507117]
[1769301767551,3.91573913,2958.1,2957.0,0.00507117]
[1769301767756,3.91573913,2958.0,2957.0,0.00507117]
[1769301767962,3.91573913,2957.9,2957.0,0.00507117]
[1769301768162,3.91573913,2957.8,2957.0,0.00507117]
[1769301768463,1.09769919,2958.3,2957.0,0.00507117]
[1769301768662,3.9156926,2958.2,2957.0,0.00507117]
[1769301768852,3.9156926,2958.1,2957.0,0.00507117]
[1769301769057,3.9156926,2958.0,2957.0,0.00507117]
[1769301769256,3.9156926,2957.9,2957.0,0.00507117]
[1769301769461,3.9156926,2957.8,2957.0,0.00507117]
[1769301769663,1.09769919,2958.3,2957.0,0.00507117]
[1769301769862,6.17960394,2958.2,2957.0,0.00507117]
[1769301770060,3.91560394,2958.1,2957.0,0.00507117]
[1769301770364,3.91560394,2958.0,2957.0,0.00507117]
[1769301770661,3.91560394,2957.9,2957.0,0.00507117]
[1769301770862,2.264,2958.2,2957.0,0.00507117]
[1769301771163,3.91559159,2958.1,2957.0,0.00507117]
[1769301771365,3.91559159,2958.0,2957.0,0.00507117]
[1769301771559,3.91559159,2957.9,2957.0,0.00507117]
[1769301771858,3.91559159,2957.8,2957.0,0.00507117]
[1769301772060,2.264,2958.2,2957.0,0.00507117]
[1769301772266,3.91560199,2958.1,2957.0,0.00507117]
[1769301772467,3.91560199,2958.0,2957.0,0.00507117]
[1769301772661,3.91560199,2957.9,2957.0,0.00507117]
[1769301772861,3.91560199,2957.8,2957.0,0.00507117]
[1769301773063,2.264,2958.2,2957.0,0.00507117]
[1769301773262,3.91576076,2958.1,2957.0,0.00507117]
[1769301773463,3.91576076,2958.0,2957.0,0.00507117]
[1769301773669,3.91576076,2957.9,2957.0,0.00507117]
[1769301773870,3.91576076,2957.8,2957.0,0.00507117]
[1769301774070,2.264,2958.2,2957.0,0.00507117]
[1769301774366,3.91565652,2958.1,2957.0,0.00507117]
[1769301774565,3.91565652,2958.0,2957.0,0.00507117]
[1769301774763,2.264,2958.2,2957.0,0.00507117]
[1769301774764,3.91565652,2957.9,2957.0,0.00507117]
[1769301774965,2.264,2958.2,2957.0,0.00507117]
[1769301775166,3.91563942,2958.1,2957.0,0.1412997]
[1769301775366,3.91563942,2958.0,2957.0,0.1412997]
[1769301775566,3.91563942,2957.9,2957.0,0.1412997]
[1769301775763,2.264,2958.2,2957.0,0.1412997]
[1769301775963,3.91545439,2958.1,2957.0,0.1412997]
[1769301776167,3.91545439,2958.0,2957.0,0.1412997]
[1769301776368,3.91545439,2957.9,2957.0,0.1412997]
[1769301776568,2.264,2958.2,2957.0,0.1412997]
[1769301776769,3.9152749,2958.1,2957.0,0.1412997]
[1769301776959,3.9152749,2958.0,2957.0,0.1412997]
[1769301777159,3.9152749,2957.9,2957.0,0.1412997]
[1769301777371,2.264,2958.2,2957.0,0.1412997]
[1769301777568,3.91524474,2958.1,2957.0,0.1412997]
[1769301777759,3.91524474,2958.0,2957.0,0.1412997]
[1769301777958,3.91524474,2957.9,2957.0,0.1412997]
[1769301778167,2.264,2958.2,2957.0,0.1412997]
[1769301778369,3.91529751,2958.1,2957.0,0.1412997]
[1769301778668,3.91529751,2958.0,2957.0,0.1412997]
[1769301778868,3.91529751,2957.9,2957.0,0.1412997]
[1769301779067,2.264,2958.2,2957.0,0.1412997]
[1769301779271,3.90897165,2958.1,2957.0,0.1412997]
[1769301779470,3.90897165,2958.0,2957.0,0.1412997]
[1769301779666,3.90897165,2957.9,2957.0,0.1412997]
[1769301779866,2.264,2958.2,2957.0,0.1412997]
[1769301780066,3.90903422,2958.1,2957.0,0.1412997]
[1769301780267,3.90903422,2958.0,2957.0,0.1412997]
[1769301780467,3.90903422,2957.9,2957.0,0.1412997]
[1769301780671,2.264,2958.2,2957.0,0.1412997]
[1769301780970,3.9090346,2958.1,2957.0,0.1412997]
[1769301781169,3.9090346,2958.0,2957.0,0.1412997]
[1769301781369,3.9090346,2957.9,2957.0,0.1412997]
[1769301781571,2.264,2958.2,2957.0,0.1412997]
[1769301781772,3.90903359,2958.1,2957.0,0.1412997]
[1769301781966,3.90903359,2958.0,2957.0,0.1412997]
[1769301782263,3.90903359,2957.9,2957.0,0.1412997]
[1769301782465,2.264,2958.2,2957.0,0.1412997]
[1769301782760,3.90903525,2958.1,2957.0,0.1412997]
[1769301783076,3.90903525,2958.0,2957.0,0.1412997]
[1769301783262,2.264,2958.2,2957.0,0.1412997]
[1769301783263,3.90903525,2957.9,2957.0,0.1412997]
[1769301783461,2.264,2958.2,2957.0,0.1412997]
[1769301783665,3.90903325,2958.1,2957.0,0.1412997]
[1769301783862,3.90903325,2958.0,2957.0,0.1412997]
[1769301784062,3.90903325,2957.9,2957.0,0.1412997]
[1769301784274,2.264,2958.2,2957.0,0.1412997]
[1769301784477,3.90903929,2958.1,2957.0,0.1412997]
[1769301784673,3.90903929,2958.0,2957.0,0.1412997]
[1769301784974,3.90903929,2957.9,2957.0,0.1412997]
[1769301785173,2.264,2958.2,2957.0,0.1412997]
[1769301785374,3.90904552,2958.1,2957.0,0.1412997]
[1769301785575,3.90904552,2958.0,2957.0,0.1412997]
[1769301785776,3.90904552,2957.9,2957.0,0.1412997]
[1769301785977,2.264,2958.2,2957.0,0.1412997]
[1769301786177,3.90903668,2958.1,2957.0,0.1412997]
[1769301786476,3.90903668,2958.0,2957.0,0.1412997]
[1769301786677,3.90903668,2957.9,2957.0,0.1412997]
[1769301786880,2.264,2958.2,2957.0,0.1412997]
[1769301787073,3.90904445,2958.1,2957.0,0.1412997]
[1769301787272,3.90904445,2958.0,2957.0,0.1412997]
[1769301787472,3.90904445,2957.9,2957.0,0.1412997]
[1769301787672,2.264,2958.2,2957.0,0.1412997]
[1769301787873,3.90904934,2958.1,2957.0,0.1412997]
[1769301788078,3.90904934,2958.0,2957.0,0.1412997]
[1769301788278,3.90904934,2957.9,2957.0,0.1412997]
[1769301788478,2.264,2958.2,2957.0,0.1412997]
[1769301788674,3.90904859,2958.1,2957.0,0.1412997]
[1769301788869,3.90904859,2958.0,2957.0,0.1412997]
[1769301789078,3.90904859,2957.9,2957.0,0.1412997]
[1769301789279,2.264,2958.2,2957.0,0.1412997]
[1769301789481,3.90907978,2958.1,2957.0,0.1412997]
[1769301789778,3.90907978,2958.0,2957.0,0.1412997]
[1769301789981,3.90907978,2957.9,2957.0,0.1412997]
[1769301790172,2.264,2958.2,2957.0,0.1412997]
[1769301790369,3.90910021,2958.1,2957.0,0.1412997]
[1769301790572,3.90910021,2958.0,2957.0,0.1412997]
[1769301790776,3.90910021,2957.9,2957.0,0.1412997]
[1769301790985,2.264,2958.2,2957.0,0.1412997]
[1769301791180,3.9091022,2958.1,2957.0,0.1412997]
[1769301791388,3.9091022,2958.0,2957.0,0.00507117]
[1769301791692,3.9091022,2957.9,2957.0,0.00507117]
[1769301791984,2.41290979,2958.2,2957.0,0.00507117]
[1769301792173,3.90912841,2958.1,2957.0,0.00507117]
[1769301792378,3.90912841,2958.0,2957.0,0.00507117]
[1769301792579,3.90912841,2957.9,2957.0,0.00507117]
[1769301792779,3.90912841,2957.8,2957.0,0.00507117]
[1769301792978,2.41290979,2958.2,2957.0,0.00507117]
[1769301793180,3.90915192,2958.1,2957.0,0.00507117]
[1769301793381,3.90915192,2958.0,2957.0,0.00507117]
[1769301793678,3.90915192,2957.9,2957.0,0.00507117]
[1769301793879,3.90915192,2957.8,2957.0,0.00507117]
[1769301794076,2.41290979,2958.2,2957.0,0.00507117]
[1769301794374,3.90919233,2958.1,2957.0,0.00507117]
[1769301794575,3.90919233,2958.0,2957.0,0.00507117]
[1769301794774,3.90919233,2957.9,2957.0,0.00507117]
[1769301794977,3.90919233,2957.8,2957.0,0.00507117]
[1769301795176,2.41290979,2958.2,2957.0,0.00507117]
[1769301795375,3.90924015,2958.1,2957.0,0.00507117]
[1769301795584,3.90924015,2958.0,2957.0,0.00507117]
[1769301795784,3.90924015,2957.9,2957.0,0.00507117]
[1769301795981,3.90924015,2957.8,2957.0,0.00507117]
[1769301796181,2.41290979,2958.2,2957.0,0.00507117]
[1769301796382,3.90925339,2958.1,2957.0,0.00507117]
[1769301796683,3.90925339,2958.0,2957.0,0.00507117]
[1769301796883,3.90925339,2957.9,2957.0,0.00507117]
[1769301797187,3.90925339,2957.8,2957.0,0.00507117]
[1769301797488,0.77775594,2958.1,2957.0,0.00507117]
[1769301797700,3.90927865,2958.0,2957.0,0.00507117]
[1769301797987,0.77775594,2958.1,2957.0,0.00507117]
[1769301797988,3.90927865,2957.9,2957.0,0.00507117]
[1769301798188,3.90927865,2957.8,2957.0,0.00507117]
[1769301801986,3.90927865,2957.8,2956.3,0.14552763]
[1769301801987,0.77775594,2957.7,2956.4,0.77775594]
[1769301806897,0.14890979,2958.0,2956.3,0.14552763]
[1769301807095,4.05783469,2957.9,2956.3,0.14552763]
[1769301807397,3.9089249,2957.8,2956.3,0.14552763]
[1769301807598,0.14890979,2957.9,2956.3,0.14552763]
[1769301807798,3.90900688,2957.8,2956.3,0.14552763]
[1769301807999,0.14890979,2957.9,2956.3,0.14552763]
[1769301808186,3.90900721,2957.8,2956.3,0.14552763]
[1769301808392,0.14890979,2957.9,2956.3,0.14552763]
[1769301808685,3.90900359,2957.8,2956.3,0.14552763]
[1769301808889,0.14890979,2957.9,2956.3,0.14552763]
[1769301809091,3.91015829,2957.8,2956.3,0.14552763]
[1769301809289,0.14890979,2957.9,2956.3,0.14552763]
[1769301809490,3.91016813,2957.8,2956.3,0.14552763]
[1769301809699,0.14890979,2957.9,2956.3,0.14552763]
[1769301809998,3.91016802,2957.8,2956.3,0.14552763]
[1769301810197,0.14890979,2957.9,2956.3,0.14552763]
[1769301810388,3.91015293,2957.8,2956.3,0.14552763]
[1769301810591,0.14890979,2957.9,2956.3,0.14552763]
[1769301810786,3.91015293,2957.8,2956.3,0.14552763]
[1769301810999,0.14890979,2957.9,2956.3,0.14552763]
[1769301811300,0.14890979,2957.7,2956.1,0.1694]
[1769301811599,4.05905598,2957.6,2956.1,0.1694]
[1769301811798,3.91014619,2957.5,2956.1,0.1694]
[1769301819211,0.14890979,2957.6,2956.1,0.1694]
[1769301824106,0.14890979,2957.6,2956.1,0.31397828]
[1769301828210,3.90433594,2957.5,2956.1,0.31397828]
[1769301828410,0.14890979,2957.6,2956.1,0.31397828]
[1769301828612,3.90433606,2957.5,2956.1,0.31397828]
[1769301828812,0.14890979,2957.6,2956.1,0.31397828]
[1769301829107,3.90433606,2957.5,2956.1,0.31397828]
[1769301829308,0.14890979,2957.6,2956.1,0.31397828]
[1769301829508,3.90441303,2957.5,2956.1,0.31397828]
[1769301829808,0.14890979,2957.6,2956.1,0.31397828]
[1769301830008,3.90441281,2957.5,2956.1,0.31397828]
[1769301830211,0.14890979,2957.6,2956.1,0.31397828]
[1769301830409,3.90452491,2957.5,2956.1,0.31397828]
[1769301830611,0.14890979,2957.6,2956.1,0.31397828]
[1769301830810,3.90452502,2957.5,2956.1,0.31397828]
[1769301831015,0.14890979,2957.6,2956.1,0.31397828]
[1769301831214,3.90452502,2957.5,2956.1,0.31397828]
[1769301831415,0.14890979,2957.6,2956.1,0.31397828]
[1769301831714,3.90468697,2957.5,2956.1,0.31397828]
[1769301831908,0.14890979,2957.6,2956.1,0.31397828]
[1769301832108,3.90468697,2957.5,2956.1,0.31397828]
[1769301832308,0.14890979,2957.6,2956.1,0.31397828]
[1769301832518,3.90489294,2957.5,2956.1,0.31397828]
[1769301832717,0.14890979,2957.6,2956.1,0.31397828]
[1769301832916,3.90489305,2957.5,2956.1,0.31397828]
[1769301833118,0.14890979,2957.6,2956.1,0.31397828]
[1769301833416,3.90514156,2957.5,2956.1,0.31397828]
[1769301833610,0.14890979,2957.6,2956.1,0.31397828]
[1769301833811,3.90514156,2957.5,2956.1,0.31397828]
[1769301834022,0.14890979,2957.6,2956.1,0.31397828]
[1769301834222,3.90536031,2957.5,2956.1,0.31397828]
[1769301834421,0.14890979,2957.6,2956.1,0.31397828]
[1769301834611,3.90543988,2957.5,2956.1,0.31397828]
[1769301834810,0.14890979,2957.6,2956.1,0.31397828]
[1769301835110,3.90543954,2957.5,2956.1,0.31397828]
[1769301835404,0.14890979,2957.6,2956.1,0.31397828]
[1769301835608,3.90579689,2957.5,2956.1,0.31397828]
[1769301835808,0.14890979,2957.6,2956.1,0.31397828]
[1769301836017,3.90579685,2957.5,2956.1,0.31397828]
[1769301836222,0.14890979,2957.6,2956.1,0.31397828]
[1769301836413,3.90622183,2957.5,2956.1,0.31397828]
[1769301836612,0.14890979,2957.6,2956.1,0.31397828]
[1769301836811,3.90622038,2957.5,2956.1,0.31397828]
[1769301837107,0.14890979,2957.6,2956.1,0.31397828]
[1769301837312,3.9067217,2957.5,2956.1,0.31397828]
[1769301837511,0.14890979,2957.6,2956.1,0.31397828]
[1769301837714,3.9067217,2957.5,2956.1,0.31397828]
[1769301837910,0.14890979,2957.6,2956.1,0.31397828]
[1769301838109,3.9067217,2957.5,2956.1,0.31397828]
[1769301838316,0.14890979,2957.6,2956.1,0.31397828]
[1769301838519,3.90733308,2957.5,2956.1,0.31397828]
[1769301838721,0.14890979,2957.6,2956.1,0.31397828]
[1769301839022,3.90872479,2957.5,2956.1,0.31397828]
[1769301839223,0.14890979,2957.6,2956.1,0.31397828]
[1769301839424,3.90949862,2957.5,2956.1,0.31397828]
[1769301839616,0.14890979,2957.6,2956.1,0.31397828]
[1769301839914,3.90949862,2957.5,2956.1,0.31397828]
[1769301840218,3.91051985,2957.4,2956.1,0.31397828]
[1769301840414,0.14890979,2957.6,2956.1,0.31397828]
[1769301840618,3.91051985,2957.5,2956.1,0.31397828]
[1769301840820,3.91051985,2957.4,2956.1,0.31397828]
[1769301841118,0.14890979,2957.6,2956.1,0.31397828]
[1769301841318,3.9130953,2957.5,2956.1,0.31397828]
[1769301841512,3.9130953,2957.4,2956.1,0.31397828]
[1769301841717,0.14890979,2957.6,2956.1,0.31397828]
[1769301841916,3.91310868,2957.5,2956.1,0.31397828]
[1769301842117,3.91310868,2957.4,2956.1,0.31397828]
[1769301842416,0.14890979,2957.6,2956.1,0.31397828]
[1769301842714,3.91304906,2957.5,2956.1,0.31397828]
[1769301842914,3.91304906,2957.4,2956.1,0.31397828]
[1769301843114,0.14890979,2957.6,2956.1,0.31397828]
[1769301843315,3.91304518,2957.5,2956.1,0.31397828]
[1769301843521,3.91304518,2957.4,2956.1,0.31397828]
[1769301843725,0.14890979,2957.6,2956.1,0.31397828]
[1769301843924,3.91300067,2957.5,2956.1,0.31397828]
[1769301844115,3.91300067,2957.4,2956.1,0.31397828]
[1769301844316,0.14890979,2957.6,2956.1,0.31397828]
[1769301844514,3.91296051,2957.5,2956.1,0.31397828]
[1769301844812,3.91296051,2957.4,2956.1,0.31397828]
[1769301845010,0.14890979,2957.6,2956.1,0.31397828]
[1769301845214,3.91296051,2957.5,2956.1,0.31397828]
[1769301845415,3.91296051,2957.4,2956.1,0.31397828]
[1769301845610,0.14890979,2957.6,2956.1,0.31397828]
[1769301845824,3.91293173,2957.5,2956.1,0.31397828]
[1769301846017,3.91293173,2957.4,2956.1,0.31397828]
[1769301846220,0.14890979,2957.6,2956.1,0.31397828]
[1769301846419,3.91290634,2957.5,2956.1,0.31397828]
[1769301846620,3.91290634,2957.4,2956.1,0.31397828]
[1769301846827,0.14890979,2957.6,2956.1,0.31397828]
[1769301847014,3.91290014,2957.5,2956.1,0.31397828]
[1769301847214,3.91290014,2957.4,2956.1,0.31397828]
[1769301847422,0.14890979,2957.6,2956.1,0.31397828]
[1769301847622,3.91287959,2957.5,2956.1,0.31397828]
[1769301847922,3.91287959,2957.4,2956.1,0.31397828]
[1769301848122,0.14890979,2957.6,2956.1,0.31397828]
[1769301848423,3.91287173,2957.5,2956.1,0.31397828]
[1769301848627,3.91287173,2957.4,2956.1,0.31397828]
[1769301848823,0.14890979,2957.6,2956.1,0.31397828]
[1769301849122,3.9128708,2957.5,2956.1,0.31397828]
[1769301849327,3.9128708,2957.4,2956.1,0.31397828]
[1769301849621,0.14890979,2957.6,2956.1,0.31397828]
[1769301849823,3.91286019,2957.5,2956.2,0.31917418]
[1769301850023,3.91286019,2957.4,2956.3,0.14978418]
[1769301850212,4.47310209,2957.9,2956.3,0.14978418]
[1769301850418,3.91285236,2957.8,2956.3,0.14978418]
[1769301850626,3.386,2958.1,2956.5,0.14978418]
[1769301850926,3.91233407,2958.0,2956.5,0.14978418]
[1769301851127,3.91233407,2957.9,2956.5,0.14978418]
[1769301851427,3.386,2958.1,2956.5,0.14978418]
[1769301851625,3.90973124,2958.0,2956.6,0.14978418]
[1769301851927,3.90973124,2957.9,2956.6,0.14978418]
[1769301852123,3.386,2958.1,2956.6,0.14978418]
[1769301852329,3.90966371,2958.0,2956.6,0.14978418]
[1769301852518,3.90966371,2957.9,2956.6,0.14978418]
[1769301852722,3.386,2958.1,2956.6,0.14978418]
[1769301852918,3.9085276,2958.0,2956.6,0.14978418]
[1769301853126,3.9085276,2957.9,2956.6,0.14978418]
[1769301853329,3.386,2958.1,2956.6,0.14978418]
[1769301853531,3.9076683,2958.0,2956.6,0.14978418]
[1769301853729,3.9076683,2957.9,2956.6,0.14978418]
[1769301853930,3.386,2958.1,2956.6,0.14978418]
[1769301854230,3.90771687,2958.0,2956.6,0.14978418]
[1769301854531,3.90771687,2957.9,2956.6,0.14978418]
[1769301854829,3.386,2958.1,2956.6,0.14978418]
[1769301855029,3.90710386,2958.0,2956.6,0.14978418]
[1769301855330,3.90710386,2957.9,2956.6,0.14978418]
[1769301855532,3.386,2958.1,2956.6,0.14978418]
[1769301855733,3.90660109,2958.0,2956.6,0.14978418]
[1769301855931,3.90660109,2957.9,2956.6,0.14978418]
[1769301856127,3.386,2958.1,2956.6,0.14978418]
[1769301856333,3.90650642,2958.0,2956.6,0.14978418]
[1769301856536,3.90650642,2957.9,2956.6,0.14978418]
[1769301856734,3.386,2958.1,2956.6,0.14978418]
[1769301856937,3.90616123,2958.0,2956.6,0.14978418]
[1769301857136,3.90616123,2957.9,2956.6,0.14978418]
[1769301857335,3.386,2958.1,2956.6,0.14978418]
[1769301857634,3.90579409,2958.0,2956.6,0.14978418]
[1769301857832,3.90579409,2957.9,2956.6,0.14978418]
[1769301858031,3.386,2958.1,2956.6,0.14978418]
[1769301858227,3.90578171,2958.0,2956.6,0.14978418]
[1769301858431,3.90578171,2957.9,2956.6,0.14978418]
[1769301858632,3.386,2958.1,2956.6,0.14978418]
[1769301858933,3.90545302,2958.0,2956.6,0.14978418]
[1769301859131,3.90545302,2957.9,2956.6,0.14978418]
[1769301859336,3.386,2958.1,2956.6,0.14978418]
[1769301859539,3.90518242,2958.0,2956.6,0.14978418]
[1769301859836,3.386,2958.1,2956.6,0.14978418]
[1769301860035,3.90518242,2958.0,2956.6,0.14978418]
[1769301860236,3.386,2958.1,2956.6,0.14978418]
[1769301860427,3.90495097,2958.0,2956.6,0.14978418]
[1769301860631,3.386,2958.1,2956.6,0.14978418]
[1769301860832,3.90495097,2958.0,2956.6,0.14978418]
[1769301861034,3.386,2958.1,2956.6,0.14978418]
[1769301861233,3.90494371,2958.0,2956.6,0.14978418]
[1769301861437,3.386,2958.1,2956.6,0.14978418]
[1769301861735,3.90475122,2958.0,2956.6,0.14978418]
[1769301861936,0.14414227,2958.3,2956.6,0.14978418]
[1769301862139,2.291,2958.1,2956.6,0.14978418]
[1769301862443,3.90473851,2958.0,2956.6,0.14978418]
[1769301862738,2.291,2958.1,2956.6,0.14978418]
[1769301862941,3.90454368,2958.0,2956.6,0.14978418]
[1769301863236,2.291,2958.1,2956.6,0.14978418]
[1769301863545,3.90442582,2958.0,2956.6,0.14978418]
[1769301863741,2.291,2958.1,2956.6,0.14978418]
[1769301863937,3.90442544,2958.0,2956.6,0.14978418]
[1769301864135,2.291,2958.1,2956.6,0.14978418]
[1769301864332,3.90438282,2958.0,2956.6,0.14978418]
[1769301864538,2.291,2958.1,2956.6,0.14978418]
[1769301864744,3.90433932,2958.0,2956.6,0.14978418]
[1769301865045,2.291,2958.1,2956.6,0.14978418]
[1769301865846,1.986,2958.2,2956.6,0.14978418]
[1769301866152,3.90399341,2958.1,2956.6,0.31915418]
[1769301866349,1.986,2958.2,2956.7,0.14708502]
[1769301866549,3.90377118,2958.1,2956.7,0.14708502]
[1769301866744,1.986,2958.2,2956.7,0.14708502]
[1769301866948,3.90377129,2958.1,2956.9,0.92471819]
[1769301867146,2.76363317,2958.2,2956.9,0.92471819]
[1769301867447,3.90378556,2958.1,2956.9,0.92471819]
[1769301867648,2.76363317,2958.2,2956.9,0.92471819]
[1769301867843,3.90361768,2958.1,2956.9,0.92471819]
[1769301868045,2.76363317,2958.2,2956.9,0.92471819]
[1769301868241,3.90361757,2958.1,2956.9,0.92471819]
[1769301868441,2.76363317,2958.2,2956.9,0.92471819]
[1769301868655,3.9035384,2958.1,2956.9,0.92471819]
[1769301868950,2.76363317,2958.2,2956.9,0.92471819]
[1769301880258,3.90107414,2958.1,2956.9,0.92471819]
[1769301880464,2.76363317,2958.2,2956.9,0.92471819]
[1769301880659,3.90107414,2958.1,2956.9,0.92471819]
[1769301880860,2.76363317,2958.2,2956.9,0.92471819]
[1769301881067,3.90109889,2958.1,2956.9,0.92471819]
[1769301881258,2.76363317,2958.2,2956.9,0.92471819]
[1769301881458,3.90109156,2958.1,2956.9,0.92471819]
[1769301881655,2.76363317,2958.2,2956.9,0.92471819]
[1769301881864,3.90109156,2958.1,2956.9,0.92471819]
[1769301882064,2.76363317,2958.2,2956.9,0.92471819]
[1769301882261,3.90108538,2958.1,2956.9,0.92471819]
[1769301882461,2.76363317,2958.2,2956.9,0.92471819]
[1769301882662,3.9011169,2958.1,2956.9,0.92471819]
[1769301882968,2.76363317,2958.2,2956.9,0.92471819]
[1769301883263,3.9011169,2958.1,2956.9,0.92471819]
[1769301883466,2.76363317,2958.2,2956.9,0.92471819]
[1769301883670,3.90115041,2958.1,2956.9,0.92471819]
[1769301883965,2.76363317,2958.2,2956.9,0.92471819]
[1769301884167,3.90114422,2958.1,2956.9,0.92471819]
[1769301884468,2.76363317,2958.2,2956.9,0.92471819]
[1769301884762,3.90120316,2958.1,2956.9,0.92471819]
[1769301884966,2.76363317,2958.2,2956.9,0.92471819]
[1769301885165,3.90117223,2958.1,2956.9,0.92471819]
[1769301885367,2.76363317,2958.2,2956.9,0.92471819]
[1769301885668,3.90128164,2958.1,2956.9,0.92471819]
[1769301885866,2.76363317,2958.2,2956.9,0.92471819]
[1769301886164,3.90131876,2958.1,2956.9,0.92471819]
[1769301886467,2.76363317,2958.2,2956.9,0.92471819]
[1769301886660,3.90146503,2958.1,2956.9,0.92471819]
[1769301886861,2.76363317,2958.2,2956.9,0.92471819]
[1769301887071,3.90146503,2958.1,2956.9,0.92471819]
[1769301887268,2.76363317,2958.2,2956.9,0.92471819]
[1769301887461,3.90163598,2958.1,2956.9,0.92471819]
[1769301887662,2.76363317,2958.2,2956.9,0.92471819]
[1769301887863,3.90159267,2958.1,2956.9,0.92471819]
[1769301888071,2.76363317,2958.2,2956.9,0.92471819]
[1769301888369,3.90159908,2958.1,2956.9,0.92471819]
[1769301888568,2.76363317,2958.2,2956.9,0.92471819]
[1769301888758,3.90180206,2958.1,2956.9,0.92471819]
[1769301888963,2.76363317,2958.2,2956.9,0.92471819]
[1769301889158,3.90180825,2958.1,2956.9,0.92471819]
[1769301889358,2.76363317,2958.2,2956.9,0.92471819]
[1769301889562,3.90203164,2958.1,2956.9,0.92471819]
[1769301889764,2.76363317,2958.2,2956.9,0.92471819]
[1769301890063,3.90201926,2958.1,2956.9,0.92471819]
[1769301890264,2.76363317,2958.2,2956.9,0.92471819]
[1769301890464,3.90225729,2958.1,2956.9,0.92471819]
[1769301890769,2.76363317,2958.2,2956.9,0.92471819]
[1769301890971,3.90225718,2958.1,2956.9,0.92471819]
[1769301891269,2.76363317,2958.2,2956.9,0.92471819]
[1769301891470,3.90250447,2958.1,2956.9,0.92471819]
[1769301891664,2.76363317,2958.2,2956.9,0.92471819]
[1769301891863,3.90258798,2958.1,2956.9,0.92471819]
[1769301892067,2.76363317,2958.2,2956.9,0.92471819]
[1769301892364,3.90258794,2958.1,2956.9,0.92471819]
[1769301892567,2.76363317,2958.2,2956.9,0.92471819]
[1769301892875,3.90287937,2958.1,2956.9,0.92471819]
[1769301893063,2.76363317,2958.2,2956.9,0.92471819]
[1769301893262,3.9028786,2958.1,2956.9,0.92471819]
[1769301893468,2.76363317,2958.2,2956.9,0.92471819]
[1769301893669,3.90325265,2958.1,2956.9,0.92471819]
[1769301893870,2.76363317,2958.2,2956.9,0.92471819]
[1769301894073,3.90324027,2958.1,2957.1,0.77763317]
[1769301894274,1.986,2958.2,2957.1,0.77763317]
[1769301894476,3.90378904,2958.1,2957.1,0.77763317]
[1769301894676,1.986,2958.2,2957.1,0.77763317]
[1769301894974,3.90378904,2958.1,2957.1,0.77763317]
[1769301895174,1.986,2958.2,2957.1,0.77763317]
[1769301895469,3.90378904,2958.1,2957.1,0.77763317]
[1769301895671,1.986,2958.2,2957.1,0.77763317]
[1769301895867,3.90386069,2958.1,2957.1,0.77763317]
[1769301896072,1.986,2958.2,2957.1,0.77763317]
[1769301896261,3.90386069,2958.1,2957.1,0.77763317]
[1769301896466,1.986,2958.2,2957.1,0.77763317]
[1769301896766,3.90393446,2958.1,2957.1,0.77763317]
[1769301896964,1.986,2958.2,2957.1,0.77763317]
[1769301897170,3.90393453,2958.1,2957.1,0.77763317]
[1769301897367,1.986,2958.2,2957.1,0.77763317]
[1769301897570,3.90402515,2958.1,2957.1,0.77763317]
[1769301897771,1.986,2958.2,2957.1,0.77763317]
[1769301897971,3.90402493,2958.1,2957.1,0.77763317]
[1769301898172,1.986,2958.2,2957.1,0.77763317]
[1769301898369,3.90402493,2958.1,2957.1,0.77763317]
[1769301898570,1.986,2958.2,2957.1,0.77763317]
[1769301898775,3.90414092,2958.1,2957.1,0.77763317]
[1769301899074,1.986,2958.2,2957.1,0.77763317]
[1769301899275,3.90389167,2958.1,2957.1,0.77763317]
[1769301899474,1.986,2958.2,2957.1,0.77763317]
[1769301899677,3.90406193,2958.1,2957.1,0.77763317]
[1769301899878,1.986,2958.2,2957.1,0.77763317]
[1769301900077,3.90406164,2958.1,2957.1,0.77763317]
[1769301900279,1.986,2958.2,2957.1,0.77763317]
[1769301900579,3.90423849,2958.1,2957.1,0.77763317]
[1769301900779,1.986,2958.2,2957.1,0.77763317]
[1769301900980,3.90423816,2958.1,2957.1,0.77763317]
[1769301901174,1.986,2958.2,2957.1,0.77763317]
[1769301901373,3.90423816,2958.1,2957.1,0.77763317]
[1769301901574,1.986,2958.2,2957.1,0.77763317]
[1769301901877,3.90448866,2958.1,2957.1,0.77763317]
[1769301902074,1.986,2958.2,2957.1,0.77763317]
[1769301902269,3.90448898,2958.1,2957.1,0.77763317]
[1769301902581,0.00421016,2958.3,2957.1,0.92672454]
[1769301902779,3.90448307,2958.2,2957.1,0.92672454]
[1769301903086,3.90448307,2958.1,2957.2,0.14915394]
[1769301903377,0.00421016,2958.3,2957.3,0.77763317]
[1769301903581,3.90443372,2958.2,2957.3,0.92678711]
[1769301903778,3.90443372,2958.1,2957.3,0.92678711]
[1769301903981,0.00421016,2958.3,2957.3,0.92678711]
[1769301904182,3.90443312,2958.2,2957.3,0.92678711]
[1769301904484,3.90443312,2958.1,2957.3,0.92678711]
[1769301904679,0.00421016,2958.3,2957.3,0.92678711]
[1769301904880,3.90414155,2958.2,2957.3,0.92678711]